bitfinex/quotes_SOLUSD_20250624
["timestamp","ask_amount","ask_price","bid_price","bid_amount"]
[1750761612406,5.16367391,144.23,144.18,34.67887363]
[1750761612608,5.16367391,144.22,144.18,34.67887363]
[1750761612807,5.16367391,144.21,144.18,34.67887363]
[1750761613123,5.16318223,144.2,144.18,34.67887363]
[1750761613345,10.0,144.22,144.18,34.67887363]
[1750761613623,5.16346276,144.21,144.18,34.67887363]
[1750761613822,5.16346276,144.2,144.18,34.67887363]
[1750761614020,10.0,144.22,144.18,34.67887363]
[1750761614320,5.16336585,144.21,144.18,34.67887363]
[1750761614511,5.16336585,144.2,144.18,34.67887363]
[1750761614714,10.0,144.21,144.16,58.96226413]
[1750761614893,5.16388716,144.2,144.16,58.96226413]
[1750761615097,10.0,144.21,144.16,58.96226413]
[1750761615325,5.16385537,144.2,144.16,58.96226413]
[1750761615537,10.0,144.21,144.16,58.96226413]
[1750761615706,5.16382733,144.2,144.16,58.96226413]
[1750761616025,5.16382733,144.19,144.16,58.96226413]
[1750761616320,10.0,144.21,144.16,58.96226413]
[1750761616622,5.16478827,144.2,144.16,58.96226413]
[1750761616834,5.16478827,144.19,144.16,58.96226413]
[1750761616997,10.0,144.21,144.16,58.96226413]
[1750761617200,5.16479678,144.2,144.16,58.96226413]
[1750761617396,5.16479678,144.19,144.16,58.96226413]
[1750761617615,10.0,144.21,144.16,58.96226413]
[1750761617822,5.16478633,144.2,144.16,58.96226413]
[1750761617997,5.16478633,144.19,144.16,58.96226413]
[1750761618201,10.0,144.21,144.16,58.96226413]
[1750761618415,15.16479222,144.2,144.16,58.96226413]
[1750761618622,5.16479222,144.19,144.16,58.96226413]
[1750761618797,10.0,144.2,144.16,58.96226413]
[1750761619014,5.16526562,144.19,144.16,58.96226413]
[1750761619328,10.0,144.2,144.16,58.96226413]
[1750761619530,5.16543241,144.19,144.16,58.96226413]
[1750761619730,10.0,144.2,144.16,58.96226413]
[1750761620028,5.16584504,144.19,144.16,58.96226413]
[1750761620226,10.0,144.2,144.16,58.96226413]
[1750761620428,5.16584863,144.19,144.16,58.96226413]
[1750761620622,10.0,144.2,144.16,58.96226413]
[1750761620838,5.16618834,144.19,144.16,58.96226413]
[1750761621131,10.0,144.2,144.16,58.96226413]
[1750761621432,5.16624229,144.19,144.16,58.96226413]
[1750761621614,10.0,144.2,144.16,58.96226413]
[1750761621818,5.16626271,144.19,144.16,58.96226413]
[1750761622115,10.0,144.2,144.16,58.96226413]
[1750761622324,5.16586592,144.19,144.16,58.96226413]
[1750761622505,10.0,144.2,144.16,58.96226413]
[1750761622705,5.16568105,144.19,144.16,58.96226413]
[1750761622927,10.0,144.2,144.16,58.96226413]
[1750761623102,5.16363662,144.19,144.16,58.96226413]
[1750761623307,10.0,144.2,144.16,58.96226413]
[1750761623522,5.16273952,144.19,144.16,58.96226413]
[1750761623810,10.0,144.2,144.16,58.96226413]
[1750761624029,5.16251601,144.19,144.16,58.96226413]
[1750761624228,10.0,144.2,144.16,58.96226413]
[1750761624406,5.16255202,144.19,144.16,58.96226413]
[1750761624605,10.0,144.22,144.16,58.96226413]
[1750761624823,15.16692174,144.21,144.16,58.96226413]
[1750761625033,5.16682179,144.2,144.16,58.96226413]
[1750761625233,10.0,144.21,144.16,58.96226413]
[1750761625441,5.16684818,144.2,144.16,58.96226413]
[1750761625618,10.0,144.21,144.16,58.96226413]
[1750761625917,5.16711008,144.2,144.16,58.96226413]
[1750761626130,5.16711008,144.19,144.16,58.96226413]
[1750761626322,5.16711008,144.18,144.16,58.96226413]
[1750761626520,10.0,144.2,144.16,58.96226413]
[1750761626725,5.16679786,144.19,144.16,58.96226413]
[1750761627026,5.16679786,144.18,144.16,52.02552718]
[1750761627230,5.16679786,144.17,144.16,52.02552718]
[1750761627531,5.16679786,144.17,144.16,17.34184239]
[1750761627833,10.0,144.16,144.15,6.93721817]
[1750761628126,15.16679786,144.16,144.15,6.93721817]
[1750761628308,5.16679786,144.16,144.15,6.93721817]
[1750761628509,10.0,144.21,144.15,58.96635447]
[1750761628731,6.5043,144.23,144.15,58.96635447]
[1750761628732,15.16545407,144.2,144.15,58.96635447]
[1750761628942,5.16545407,144.19,144.15,58.96635447]
[1750761629146,5.16545407,144.18,144.15,58.96635447]
[1750761629310,10.0,144.2,144.15,58.96635447]
[1750761629505,5.16595363,144.19,144.15,58.96635447]
[1750761629710,10.0,144.2,144.15,58.96635447]
[1750761629931,5.16728365,144.19,144.15,58.96635447]
[1750761630229,10.0,144.2,144.15,93.65244534]
[1750761630429,5.16722801,144.19,144.15,93.65244534]
[1750761630632,10.0,144.2,144.15,93.65244534]
[1750761630832,5.16761054,144.19,144.15,93.65244534]
[1750761631034,10.0,144.21,144.15,93.65244534]
[1750761631228,15.16760151,144.2,144.15,93.65244534]
[1750761631526,5.16760151,144.19,144.15,93.65244534]
[1750761631719,10.0,144.2,144.15,93.65244534]
[1750761631916,5.16897758,144.19,144.15,93.65244534]
[1750761632111,10.0,144.2,144.15,93.65244534]
[1750761632312,5.16897395,144.19,144.15,93.65244534]
[1750761632634,10.0,144.2,144.15,93.65244534]
[1750761632833,5.16939679,144.19,144.15,93.65244534]
[1750761633035,7.8612,144.25,144.15,93.65244534]
[1750761633036,10.0,144.21,144.15,93.65244534]
[1750761633213,10.0,144.22,144.15,93.65244534]
[1750761633412,10.0,144.21,144.15,93.65244534]
[1750761633613,10.0,144.23,144.16,10.29783572]
[1750761634838,5.17012284,144.22,144.16,10.29783572]
[1750761635013,5.17012284,144.21,144.16,10.29783572]
[1750761635220,5.17012284,144.2,144.16,10.29783572]
[1750761635419,10.0,144.23,144.16,10.29783572]
[1750761635638,5.16974084,144.22,144.17,58.95817436]
[1750761635852,5.16974084,144.21,144.17,58.95817436]
[1750761636034,5.16974084,144.2,144.17,58.95817436]
[1750761636236,10.0,144.23,144.17,58.95817436]
[1750761636439,5.16940365,144.22,144.17,58.95817436]
[1750761636738,5.16940365,144.21,144.17,58.95817436]
[1750761636938,5.16940365,144.2,144.17,58.95817436]
[1750761637235,10.0,144.23,144.17,58.95817436]
[1750761637439,5.17015249,144.22,144.17,58.95817436]
[1750761637618,5.17015249,144.21,144.17,58.95817436]
[1750761637943,10.0,144.27,144.18,34.68916828]
[1750761638122,5.17135632,144.26,144.18,34.68916828]
[1750761638321,5.17135632,144.25,144.18,34.68916828]
[1750761638524,10.0,144.27,144.18,34.68916828]
[1750761638525,5.17135632,144.24,144.18,34.68916828]
[1750761638724,10.0,144.26,144.18,34.68916828]
[1750761639028,15.16839844,144.25,144.19,58.94999651]
[1750761639229,5.16839844,144.24,144.19,58.94999651]
[1750761639437,10.0,144.25,144.19,58.94999651]
[1750761639640,5.16693337,144.24,144.19,58.94999651]
[1750761639837,10.0,144.25,144.19,58.94999651]
[1750761640037,5.16727087,144.24,144.2,10.29783572]
[1750761640239,10.0,144.26,144.2,10.29783572]
[1750761640443,5.16717985,144.25,144.2,10.29783572]
[1750761640640,5.16717985,144.24,144.2,10.29783572]
[1750761640836,10.0,144.26,144.2,10.29783572]
[1750761641046,10.0,144.26,144.19,93.62646505]
[1750761641047,10.0,144.23,144.21,6.93433187]
[1750761641348,5.16607452,144.22,144.21,6.93433187]
[1750761641845,10.0,144.18,144.16,24.27775323]
[1750761642144,10.0,144.17,144.16,24.27775323]
[1750761642849,10.0,144.17,144.16,6.93673695]
[1750761643823,10.0,144.16,144.15,65.60343005]
[1750761644049,10.0,144.16,144.12,6.93866222]
[1750761644350,1.6095,144.18,144.12,6.93866222]
[1750761644351,10.0,144.13,144.12,6.93866222]
[1750761645044,10.0,144.14,144.11,6.9391437]
[1750761645446,15.16345038,144.13,144.11,6.9391437]
[1750761645651,10.0,144.15,144.11,24.28700297]
[1750761645834,5.15792521,144.14,144.11,24.28700297]
[1750761646154,10.0,144.16,144.11,24.28700297]
[1750761646332,5.15973878,144.15,144.11,24.28700297]
[1750761646532,10.0,144.15,144.11,24.28700297]
[1750761646725,10.0,144.17,144.11,24.28700297]
[1750761646930,15.15712449,144.16,144.11,24.28700297]
[1750761647151,10.0,144.18,144.11,58.98272151]
[1750761647346,10.0,144.17,144.11,60.58662151]
[1750761648154,10.0,144.19,144.11,60.58662151]
[1750761648373,10.0,144.17,144.11,60.58662151]
[1750761648733,10.0,144.19,144.11,60.58662151]
[1750761648930,5.15669344,144.18,144.11,60.58662151]
[1750761649233,10.0,144.18,144.11,60.58662151]
[1750761650755,10.0,144.19,144.11,60.58662151]
[1750761650933,5.15659954,144.18,144.11,95.28234005]
[1750761651253,10.0,144.21,144.11,95.28234005]
[1750761651456,10.0,144.23,144.12,6.81554403]
[1750761651649,10.0,144.23,144.12,23.13912384]
[1750761651956,10.0,144.22,144.12,88.73392138]
[1750761653653,10.0,144.22,144.13,58.97453686]
[1750761654031,10.0,144.22,144.13,93.6654409]
[1750761654233,10.0,144.21,144.13,93.6654409]
[1750761654656,10.0,144.19,144.13,93.6654409]
[1750761655169,10.0,144.2,144.13,93.6654409]
[1750761655368,10.0,144.21,144.13,93.6654409]
[1750761655554,10.0,144.21,144.13,86.7272601]
[1750761655740,10.0,144.23,144.13,86.7272601]
[1750761655942,10.0,144.22,144.13,86.7272601]
[1750761656244,10.0,144.21,144.13,86.7272601]
[1750761656646,10.0,144.2,144.13,86.7272601]
[1750761656852,10.0,144.2,144.13,176.1272601]
[1750761657054,10.0,144.21,144.13,176.1272601]
[1750761657363,10.0,144.2,144.13,176.1272601]
[1750761657564,10.0,144.2,144.13,183.0654409]
[1750761657866,10.0,144.21,144.13,183.0654409]
[1750761658040,6.73399332,144.26,144.13,183.0654409]
[1750761658041,10.0,144.2,144.13,183.0654409]
[1750761658358,10.0,144.22,144.13,183.0654409]
[1750761658561,10.0,144.22,144.14,6.3833]
[1750761659364,10.0,144.21,144.14,6.3833]
[1750761659566,10.0,144.22,144.15,58.96635447]
[1750761659760,10.0,144.24,144.15,93.65244534]
[1750761660058,1.567,144.26,144.15,93.65244534]
[1750761660059,15.15683072,144.23,144.16,1.6124]
[1750761660239,10.0,144.23,144.16,1.6124]
[1750761661267,10.0,144.23,144.17,58.95817436]
[1750761662066,10.0,144.25,144.17,58.95817436]
[1750761662249,5.15653596,144.24,144.17,58.95817436]
[1750761662456,5.15653596,144.23,144.17,58.95817436]
[1750761662660,10.0,144.24,144.17,58.95817436]
[1750761662965,5.15663626,144.23,144.17,93.6394534]
[1750761663168,10.0,144.24,144.17,93.6394534]
[1750761663469,5.15668624,144.23,144.17,93.6394534]
[1750761663642,10.0,144.24,144.17,93.6394534]
[1750761663843,5.15593029,144.23,144.17,93.6394534]
[1750761664053,10.0,144.24,144.17,93.6394534]
[1750761666964,10.0,144.25,144.17,93.6394534]
[1750761667164,15.1563006,144.24,144.17,93.6394534]
[1750761667473,10.0,144.24,144.17,93.6394534]
[1750761669554,15.15622931,144.23,144.17,93.6394534]
[1750761669755,10.0,144.23,144.17,93.6394534]
[1750761669954,15.15631761,144.22,144.17,93.6394534]
[1750761670164,10.0,144.22,144.17,93.6394534]
[1750761672157,10.0,144.23,144.17,93.6394534]
[1750761672368,15.15618032,144.22,144.17,93.6394534]
[1750761672664,10.0,144.22,144.17,93.6394534]
[1750761676984,10.0,144.22,144.19,24.27352797]
[1750761678391,28.78,144.25,144.19,58.94999651]
[1750761678392,10.0,144.24,144.19,58.94999651]
[1750761678569,38.78,144.25,144.19,58.94999651]
[1750761680784,28.78,144.25,144.19,58.94999651]
[1750761680989,38.78,144.25,144.19,58.94999651]
[1750761682403,28.78,144.25,144.19,58.94999651]
[1750761683086,10.0,144.26,144.19,100.24306505]
[1750761683469,38.74,144.26,144.19,100.24306505]
[1750761683674,28.74,144.26,144.19,100.24306505]
[1750761683881,38.74,144.26,144.19,100.24306505]
[1750761686698,10.0,144.25,144.19,100.24306505]
[1750761686994,15.15627136,144.24,144.19,93.62646505]
[1750761687294,28.74,144.26,144.2,6.34]
[1750761687295,10.0,144.23,144.2,6.34]
[1750761687468,10.0,144.22,144.2,6.34]
[1750761687668,10.0,144.22,144.19,24.27352797]
[1750761687880,10.0,144.2,144.19,13.2752937]
[1750761688078,43.91494566,144.2,144.19,13.2752937]
[1750761688295,28.76,144.2,144.19,13.2752937]
[1750761688483,38.76,144.2,144.19,13.2752937]
[1750761688689,43.91543297,144.2,144.19,13.2752937]
[1750761689000,43.91565763,144.2,144.19,13.2752937]
[1750761690363,38.76,144.2,144.19,13.2752937]
[1750761690564,43.92016713,144.2,144.19,13.2752937]
[1750761690794,33.92016713,144.2,144.19,13.2752937]
[1750761691091,43.92016713,144.2,144.19,13.2752937]
[1750761691875,43.92390278,144.2,144.19,13.2752937]
[1750761694071,33.92390278,144.2,144.19,13.2752937]
[1750761694608,33.92963292,144.2,144.19,13.2752937]
[1750761695102,28.76,144.2,144.19,13.2752937]
[1750761695300,33.92983938,144.2,144.19,13.2752937]
[1750761695508,43.92983938,144.2,144.19,13.2752937]
[1750761696975,33.92983938,144.2,144.19,13.2752937]
[1750761697284,43.92983938,144.2,144.19,13.2752937]
[1750761697493,43.93130649,144.2,144.19,13.2752937]
[1750761699505,38.76,144.2,144.19,13.2752937]
[1750761701790,43.93247078,144.2,144.19,13.2752937]
[1750761704404,38.76,144.2,144.19,13.2752937]
[1750761704706,43.93048377,144.2,144.19,13.2752937]
[1750761706893,43.93048377,144.2,144.19,6.9352937]
[1750761707505,43.92881934,144.2,144.19,6.9352937]
[1750761707712,49.09649728,144.2,144.19,6.9352937]
[1750761708011,43.92878594,144.2,144.18,6.93577472]
[1750761708210,5.16878594,144.19,144.18,6.93577472]
[1750761708708,10.0,144.18,144.17,13.27611135]
[1750761708893,43.82878594,144.18,144.17,13.27611135]
[1750761710615,43.82878594,144.18,144.17,6.34]
[1750761710941,48.98933188,144.18,144.17,6.34]
[1750761712506,48.98129039,144.18,144.17,6.34]
[1750761713003,48.98147622,144.18,144.17,6.34]
[1750761713388,48.98147622,144.18,144.17,13.2762558]
[1750761713690,43.81726233,144.18,144.17,13.2762558]
[1750761714699,15.15726233,144.18,144.17,13.2762558]
[1750761714902,43.79726233,144.18,144.17,13.2762558]
[1750761715817,38.64,144.18,144.17,13.2762558]
[1750761716016,43.79698412,144.18,144.17,13.2762558]
[1750761717611,15.15698412,144.18,144.17,13.2762558]
[1750761717811,43.79478695,144.18,144.17,13.2762558]
[1750761718895,43.79420417,144.18,144.17,13.2762558]
[1750761719316,43.79353161,144.18,144.17,13.2762558]
[1750761721125,43.79253467,144.18,144.17,13.2762558]
[1750761721421,38.64,144.18,144.17,13.2762558]
[1750761721611,43.79217225,144.18,144.17,13.2762558]
[1750761722920,38.64,144.18,144.17,13.2762558]
[1750761723233,28.64,144.18,144.17,13.2762558]
[1750761723927,38.64,144.18,144.17,13.2762558]
[1750761724916,43.79325486,144.18,144.17,13.2762558]
[1750761730606,43.80184768,144.18,144.17,6.34]
[1750761731424,48.96805142,144.18,144.17,6.34]
[1750761731632,48.96805142,144.18,144.07,6.3477]
[1750761731633,18.2571,144.11,144.1,6.93962526]
[1750761731832,18.2571,144.11,144.06,65.64441512]
[1750761731833,10.0,144.08,144.06,65.64441512]
[1750761732027,10.0,144.04,144.03,6.94299798]
[1750761732243,10.0,144.03,144.02,13.94335902]
[1750761732536,40.22,144.04,144.02,13.94335902]
[1750761732838,10.0,144.03,144.02,13.94335902]
[1750761733342,10.0,144.03,144.02,7.0]
[1750761734121,10.0,143.96,143.95,7.36]
[1750761734327,40.36,143.96,143.95,7.36]
[1750761734927,45.51522115,143.96,143.95,7.36]
[1750761735319,45.51522115,143.96,143.95,14.30685654]
[1750761735650,40.36,143.96,143.95,14.30685654]
[1750761738651,40.36,143.96,143.95,7.36]
[1750761739050,10.0,143.93,143.91,51.90878743]
[1750761739351,30.48,143.93,143.92,14.30830461]
[1750761739533,40.48,143.93,143.92,14.30830461]
[1750761739927,30.48,143.93,143.92,14.30830461]
[1750761740120,7.8426,144.03,143.92,14.30830461]
[1750761740121,30.46,143.95,143.92,31.67906614]
[1750761740323,30.5,143.95,143.92,31.67906614]
[1750761742021,40.5,143.95,143.92,31.67906614]
[1750761742765,10.0,143.93,143.92,31.67906614]
[1750761742966,40.5,143.95,143.92,31.67906614]
[1750761743146,30.5,143.95,143.92,31.67906614]
[1750761743328,40.5,143.95,143.92,31.67906614]
[1750761743853,30.5,143.95,143.92,31.67906614]
[1750761744147,10.0,143.99,143.93,6.6058]
[1750761745234,10.0,144.01,143.93,6.6058]
[1750761745442,40.44,144.03,143.93,6.6058]
[1750761745630,10.0,143.98,143.93,6.6058]
[1750761745829,10.0,143.98,143.94,24.31568708]
[1750761746435,10.0,143.97,143.94,24.31568708]
[1750761747751,10.0,143.97,143.94,17.36834792]
[1750761747935,10.0,143.96,143.94,17.36834792]
[1750761748537,10.0,143.95,143.94,17.36834792]
[1750761748735,10.0,143.94,143.93,6.94782185]
[1750761748953,10.0,143.94,143.93,14.30782185]
[1750761753336,10.0,143.94,143.92,6.94810092]
[1750761753576,40.86,143.93,143.92,14.30810092]
[1750761753858,42.5016,143.93,143.91,51.9086499]
[1750761754163,10.0,143.92,143.91,51.9086499]
[1750761754688,10.0,143.92,143.91,44.96]
[1750761755173,10.0,143.92,143.91,51.90878743]
[1750761758849,40.88,143.93,143.91,51.90878743]
[1750761759251,10.0,143.94,143.91,69.28075602]
[1750761759448,10.0,143.92,143.91,69.28075602]
[1750761759650,10.0,143.94,143.91,69.28075602]
[1750761760152,10.0,143.92,143.91,69.28075602]
[1750761761660,40.82,143.95,143.91,69.28075602]
[1750761762050,10.0,143.94,143.91,69.28075602]
[1750761762245,40.82,143.95,143.91,69.28075602]
[1750761762656,10.0,143.94,143.91,69.28075602]
[1750761763362,10.0,143.96,143.91,104.0246932]
[1750761763564,10.0,143.97,143.91,104.0246932]
[1750761763753,10.0,143.96,143.91,104.0246932]
[1750761765068,10.0,143.97,143.91,104.0246932]
[1750761765375,10.0,143.96,143.91,104.0246932]
[1750761767349,10.0,143.97,143.91,104.0246932]
[1750761767558,10.0,143.96,143.91,104.0246932]
[1750761771246,10.0,143.97,143.91,104.0246932]
[1750761774168,10.0,143.96,143.91,104.0246932]
[1750761776474,10.0,143.97,143.91,104.0246932]
[1750761776680,15.17765265,143.96,143.91,104.0246932]
[1750761776978,5.17765265,143.95,143.91,104.0246932]
[1750761777181,10.0,143.96,143.91,104.0246932]
[1750761777387,5.17764904,143.95,143.91,104.0246932]
[1750761777679,10.0,143.96,143.91,104.0246932]
[1750761777869,5.17704725,143.95,143.91,104.0246932]
[1750761778168,10.0,143.96,143.91,104.0246932]
[1750761778958,10.0,143.97,143.91,104.0246932]
[1750761779365,5.17717935,143.96,143.91,104.0246932]
[1750761779562,10.0,143.97,143.91,104.0246932]
[1750761779772,5.17718098,143.96,143.91,104.0246932]
[1750761779964,10.0,143.97,143.91,104.0246932]
[1750761780283,5.17528947,143.96,143.91,104.0246932]
[1750761780454,10.0,143.97,143.91,138.76863038]
[1750761780657,5.17482453,143.96,143.91,138.76863038]
[1750761780855,10.0,143.98,143.91,138.76863038]
[1750761781154,5.17518736,143.97,143.91,138.76863038]
[1750761781371,5.17518736,143.96,143.91,138.76863038]
[1750761781567,10.0,143.98,143.91,138.76863038]
[1750761781768,5.17423425,143.97,143.91,138.76863038]
[1750761782080,10.0,144.01,143.91,228.16863038]
[1750761782380,10.0,143.99,143.91,228.16863038]
[1750761783075,10.0,144.0,143.91,228.16863038]
[1750761783277,5.17403158,143.99,143.91,228.16863038]
[1750761783474,10.0,144.0,143.91,228.16863038]
[1750761783674,15.1738523,143.99,143.91,228.16863038]
[1750761783865,10.0,143.99,143.91,228.16863038]
[1750761784066,5.17333858,143.98,143.91,228.16863038]
[1750761784268,10.0,143.99,143.91,228.16863038]
[1750761784466,15.17327632,143.98,143.91,228.16863038]
[1750761784667,10.0,143.98,143.92,7.56]
[1750761785757,10.0,143.98,143.91,138.76863038]
[1750761785959,10.0,143.98,143.92,7.56]
[1750761786157,10.0,143.98,143.93,59.05648577]
[1750761786663,10.0,143.98,143.94,7.56]
[1750761787183,10.0,144.0,143.94,7.56]
[1750761787485,10.0,144.01,143.94,7.56]
[1750761787657,10.0,144.0,143.94,7.56]
[1750761787980,10.0,144.0,143.95,1.5926]
[1750761788180,10.0,144.0,143.96,24.31230897]
[1750761789582,10.0,144.02,143.96,59.04417893]
[1750761789880,15.16866486,144.03,143.96,59.04417893]
[1750761790179,10.0,144.02,143.96,59.04417893]
[1750761790355,30.34,144.04,143.96,59.04417893]
[1750761790356,10.0,144.0,143.96,59.04417893]
[1750761790776,10.0,144.02,143.96,59.04417893]
[1750761791186,10.0,144.02,143.96,65.25247893]
[1750761791555,10.0,144.02,143.96,99.98434889]
[1750761793483,10.0,144.01,143.96,99.98434889]
[1750761796401,30.34,144.04,143.96,99.98434889]
[1750761796402,10.0,144.0,143.96,93.77604889]
[1750761800181,10.0,143.99,143.96,93.77604889]
[1750761800590,10.0,143.98,143.96,93.77604889]
[1750761800977,10.0,143.98,143.96,24.31230897]
[1750761801791,10.0,143.98,143.96,17.36593498]
[1750761804580,10.0,143.98,143.97,7.22]
[1750761805198,10.0,143.98,143.96,17.36593498]
[1750761805579,10.0,143.98,143.97,7.22]
[1750761805987,10.0,143.98,143.97,14.1658915]
[1750761806785,10.0,143.98,143.97,6.9458915]
[1750761807102,10.0,143.98,143.97,14.1658915]
[1750761807279,10.0,143.99,143.97,14.1658915]
[1750761807484,10.0,143.98,143.97,14.1658915]
[1750761808283,10.0,143.98,143.97,6.9458915]
[1750761808604,10.0,143.98,143.97,14.1658915]
[1750761810703,15.17733316,143.98,143.97,14.1658915]
[1750761811580,15.17738295,143.98,143.97,14.1658915]
[1750761814802,15.17706802,143.98,143.97,14.1658915]
[1750761815004,20.35484175,143.98,143.97,14.1658915]
[1750761816180,50.31484175,143.98,143.97,14.1658915]
[1750761817284,50.3149245,143.98,143.97,14.1658915]
[1750761817509,10.0,143.96,143.95,6.94685654]
[1750761817698,15.17785648,143.96,143.95,6.94685654]
[1750761823005,15.17392888,143.96,143.95,6.94685654]
[1750761823912,10.0,143.96,143.95,6.94685654]
[1750761824707,10.0,143.96,143.94,14.1671277]
[1750761825418,10.0,143.95,143.94,14.1671277]
[1750761825786,10.0,143.95,143.94,7.22]
[1750761825986,15.17208914,143.95,143.94,7.22]
[1750761826187,15.17208914,143.95,143.94,14.16733916]
[1750761826414,15.17186111,143.95,143.94,14.16733916]
[1750761827196,15.17186111,143.95,143.94,6.94733916]
[1750761828690,15.16428478,143.95,143.94,6.94733916]
[1750761830007,10.0,143.95,143.94,6.94733916]
[1750761831520,10.0,143.92,143.89,34.74691789]
[1750761831723,10.0,143.91,143.9,6.92]
[1750761832519,29.72,143.93,143.9,6.92]
[1750761832520,39.72,143.93,143.9,6.92]
[1750761832920,10.0,143.94,143.9,6.92]
[1750761833525,10.0,143.94,143.91,24.32075602]
[1750761834125,39.68,143.95,143.91,24.32075602]
[1750761834325,10.0,143.94,143.91,24.32075602]
[1750761845430,10.0,143.93,143.91,24.32075602]
[1750761849052,29.64,143.96,143.91,24.32075602]
[1750761849053,10.0,143.92,143.91,24.32075602]
[1750761850920,10.0,143.94,143.91,24.32075602]
[1750761851442,10.0,143.92,143.91,24.32075602]
[1750761851828,10.0,143.94,143.91,24.32075602]
[1750761852241,10.0,143.95,143.91,24.32075602]
[1750761852442,10.0,143.94,143.91,24.32075602]
[1750761855351,10.0,143.95,143.91,24.32075602]
[1750761855553,10.0,143.92,143.91,6.94878743]
[1750761855756,15.17584155,143.92,143.91,6.94878743]
[1750761856339,45.07584155,143.92,143.91,6.94878743]
[1750761857850,45.07584155,143.92,143.9,6.94927032]
[1750761858154,10.0,143.91,143.9,6.94927032]
[1750761860855,15.17611738,143.91,143.9,6.94927032]
[1750761862556,10.0,143.91,143.9,6.94927032]
[1750761862759,39.9,143.92,143.9,6.94927032]
[1750761863454,10.0,143.93,143.9,24.32244613]
[1750761863640,10.0,143.95,143.9,24.32244613]
[1750761863957,10.0,143.96,143.9,24.32244613]
[1750761864160,10.0,143.99,143.9,59.06879776]
[1750761864356,5.17777789,143.98,143.9,59.06879776]
[1750761864660,10.0,143.95,143.9,59.06879776]
[1750761865036,10.0,143.94,143.9,59.06879776]
[1750761865257,10.0,143.93,143.9,59.06879776]
[1750761867859,10.0,143.93,143.9,93.81514939]
[1750761870460,10.0,143.94,143.9,93.81514939]
[1750761870674,10.0,143.93,143.9,93.81514939]
[1750761871356,10.0,143.96,143.9,93.81514939]
[1750761871963,10.0,143.94,143.9,93.81514939]
[1750761873249,10.0,143.95,143.9,93.81514939]
[1750761873448,10.0,143.96,143.9,93.81514939]
[1750761873652,10.0,143.94,143.9,93.81514939]
[1750761874765,10.0,143.95,143.9,93.81514939]
[1750761875142,10.0,143.95,143.9,183.21514939]
[1750761876350,10.0,143.96,143.9,183.21514939]
[1750761876555,10.0,143.97,143.9,183.21514939]
[1750761876950,10.0,143.96,143.9,183.21514939]
[1750761877145,10.0,143.97,143.9,183.21514939]
[1750761877347,10.0,143.98,143.9,183.21514939]
[1750761877852,10.0,143.97,143.9,183.21514939]
[1750761878870,10.0,143.96,143.9,183.21514939]
[1750761879062,10.0,143.95,143.9,183.21514939]
[1750761879363,10.0,143.95,143.9,93.81514939]
[1750761885579,10.0,143.95,143.91,6.98]
[1750761885881,10.0,143.95,143.92,24.31906614]
[1750761889779,10.0,143.95,143.9,69.49270326]
[1750761890083,10.0,143.95,143.91,6.8]
[1750761890254,10.0,143.94,143.91,6.8]
[1750761891471,10.0,143.94,143.92,6.94830461]
[1750761892269,10.0,143.95,143.92,24.31906614]
[1750761896482,35.75,143.99,143.92,24.31906614]
[1750761896483,10.0,143.96,143.92,24.31906614]
[1750761897590,10.0,143.95,143.92,24.31906614]
[1750761897894,10.0,143.96,143.92,24.31906614]
[1750761899075,10.0,143.95,143.92,24.31906614]
[1750761899478,10.0,143.96,143.92,24.31906614]
[1750761899786,10.0,143.95,143.92,24.31906614]
[1750761899963,10.0,143.98,143.92,93.80211226]
[1750761900289,10.0,143.99,143.92,93.80211226]
[1750761900471,10.0,143.97,143.92,93.80211226]
[1750761900878,10.0,143.99,143.92,93.80211226]
[1750761901067,10.0,144.0,143.92,93.80211226]
[1750761901569,10.0,144.0,143.93,1.5571]
[1750761901771,5.18045351,144.04,143.93,1.5571]
[1750761901772,10.0,144.04,143.94,6.1673]